lending/lending_fUSD_20240411
["ID","MTS","AMOUNT","RATE_DAILY","PERIOD"]
[322195156,1712869870221,-500.0,0.00027945,2]
[322195157,1712869870232,-500.0,0.00027945,2]
[322195158,1712869870243,-500.0,0.00027945,2]
[322195159,1712869870254,-500.0,0.00027945,2]
[322195160,1712869870264,-500.0,0.00027945,2]
[322195161,1712869870274,-500.0,0.00027945,2]
[322195162,1712869870284,-500.0,0.00027945,2]
[322195163,1712869870294,-500.0,0.00027945,2]
[322195164,1712869870303,-500.0,0.00027945,2]
[322195165,1712869870312,-500.0,0.00027945,2]
[322195166,1712869870323,-567.35101949,0.00027945,2]
[322195167,1712869870333,-500.0,0.00027945,2]
[322195168,1712869870345,-500.0,0.00027945,2]
[322195169,1712869870356,-765.12,0.00027945,2]
[322195170,1712869870368,-500.0,0.00027945,2]
[322195171,1712869870378,-500.0,0.00027945,2]
[322195172,1712869870388,-533.77965119,0.00027945,2]
[322195173,1712869870399,-500.0,0.00027945,2]
[322195174,1712869870410,-500.0,0.00027945,2]
[322195175,1712869870420,-500.0,0.00027945,2]
[322195176,1712869870430,-673.55,0.00027945,2]
[322195177,1712869870441,-500.0,0.00027945,2]
[322195178,1712869870451,-500.0,0.00027945,2]
[322195179,1712869870461,-500.0,0.00027945,2]
[322195180,1712869870470,-500.0,0.00027945,2]
[322195181,1712869870480,-500.0,0.00027945,2]
[322195182,1712869870489,-500.0,0.00027945,2]
[322195183,1712869870499,-500.0,0.00027945,2]
[322195184,1712869870508,-500.0,0.00027945,2]
[322195185,1712869870517,-500.0,0.00027945,2]
[322195186,1712869870527,-500.0,0.00027945,2]
[322195187,1712869870536,-500.0,0.00027945,2]
[322195188,1712869870546,-1055.22,0.00027945,2]
[322195189,1712869870555,-838.26,0.00027945,2]
[322195190,1712869870565,-513.12,0.00027945,2]
[322195191,1712869870574,-500.0,0.00027945,2]
[322195192,1712869870583,-561.16,0.00027945,2]
[322195193,1712869870595,-500.0,0.00027945,2]
[322195194,1712869870604,-500.0,0.00027945,2]
[322195195,1712869870613,-520.88,0.00027945,2]
[322195196,1712869870622,-500.0,0.00027945,2]
[322195197,1712869870632,-500.0,0.00027945,2]
[322195198,1712869870641,-618.67890194,0.00027945,2]
[322195199,1712869870650,-500.0,0.00027945,2]
[322195200,1712869870659,-532.8,0.00027945,2]
[322195201,1712869870669,-500.0,0.00027945,2]
[322195202,1712869870679,-717.66,0.00027945,2]
[322195203,1712869870688,-500.0,0.00027945,2]
[322195204,1712869870698,-500.0,0.00027945,2]
[322195205,1712869870707,-500.0,0.00027945,2]
[322195206,1712869870717,-279.83577357,0.00027945,2]
[322195207,1712869870728,-500.0,0.00027945,2]
[322195208,1712869870739,-500.0,0.00027945,2]
[322195209,1712869870749,-500.0,0.00027945,2]
[322195210,1712869870760,-500.0,0.00027945,2]
[322195211,1712869870771,-956.54,0.00027945,2]
[322195212,1712869870782,-500.0,0.00027945,2]
[322195213,1712869870793,-500.0,0.00027945,2]
[322195214,1712869870803,-527.16,0.00027945,2]
[322195215,1712869870813,-500.0,0.00027945,2]
[322195216,1712869870822,-500.0,0.00027945,2]
[322195217,1712869870832,-500.0,0.00027945,2]
[322195218,1712869870844,-500.0,0.00027945,2]
[322195219,1712869870853,-554.56483441,0.00027945,2]
[322195220,1712869870863,-500.0,0.00027945,2]
[322195221,1712869870872,-500.0,0.00027945,2]
[322195222,1712869870882,-500.0,0.00027945,2]
[322195223,1712869870891,-500.0,0.00027945,2]
[322195224,1712869870900,-500.0,0.00027945,2]
[322195225,1712869870910,-500.0,0.00027945,2]
[322195226,1712869870919,-500.0,0.00027945,2]
[322195227,1712869870927,-500.0,0.00027945,2]
[322195228,1712869870937,-500.0,0.00027945,2]
[322195229,1712869870946,-583.53,0.00027945,2]
[322195230,1712869870956,-500.0,0.00027945,2]
[322195231,1712869870965,-595.46780414,0.00027945,2]
[322195232,1712869870975,-500.0,0.00027945,2]
[322195233,1712869870984,-500.0,0.00027945,2]
[322195234,1712869870993,-500.0,0.00027945,2]
[322195235,1712869871002,-500.0,0.00027945,2]
[322195236,1712869871011,-500.0,0.00027945,2]
[322195237,1712869871023,-500.0,0.00027945,2]
[322195238,1712869871033,-500.0,0.00027945,2]
[322195239,1712869871043,-500.0,0.00027945,2]
[322195240,1712869871053,-500.0,0.00027945,2]
[322195241,1712869871062,-794.27,0.00027945,2]
[322195242,1712869871072,-500.0,0.00027945,2]
[322195243,1712869871081,-500.0,0.00027945,2]
[322195244,1712869871093,-775.81,0.00027945,2]
[322195245,1712869871103,-500.0,0.00027945,2]
[322195246,1712869871113,-500.0,0.00027945,2]
[322195247,1712869871122,-500.0,0.00027945,2]
[322195248,1712869871131,-500.0,0.00027945,2]
[322195249,1712869871141,-500.0,0.00027945,2]
[322195250,1712869871150,-500.0,0.00027945,2]
[322195251,1712869871160,-1268.53,0.00027945,2]
[322195252,1712869871170,-500.0,0.00027945,2]
[322195253,1712869871179,-579.81,0.00027945,2]
[322195254,1712869871188,-683.65,0.00027945,2]
[322195255,1712869871198,-500.0,0.00027945,2]
[322195256,1712869871207,-500.0,0.00027945,2]
[322195257,1712869871216,-500.0,0.00027945,2]
[322195258,1712869871225,-500.0,0.00027945,2]
[322195259,1712869871234,-500.0,0.00027945,2]
[322195260,1712869871244,-1283.53,0.00027945,2]
[322195261,1712869871254,-500.0,0.00027945,2]
[322195262,1712869871263,-500.0,0.00027945,2]
[322195263,1712869871273,-500.0,0.00027945,2]
[322195264,1712869871282,-500.0,0.00027945,2]
[322195265,1712869871292,-1242.22,0.00027945,2]
[322195266,1712869871301,-500.0,0.00027945,2]
[322195267,1712869871311,-610.16,0.00027945,2]
[322195268,1712869871320,-500.0,0.00027945,2]
[322195269,1712869871330,-686.6,0.00027945,2]
[322195270,1712869871342,-964.51,0.00027945,2]
[322195271,1712869871352,-500.0,0.00027945,2]
[322195272,1712869871362,-552.23,0.00027945,2]
[322195273,1712869871371,-500.0,0.00027945,2]
[322195274,1712869871380,-500.0,0.00027945,2]
[322195275,1712869871391,-500.0,0.00027945,2]
[322195276,1712869871401,-993.58,0.00027945,2]
[322195277,1712869871411,-500.0,0.00027945,2]
[322195278,1712869871420,-675.23,0.00027945,2]
[322195279,1712869871430,-500.0,0.00027945,2]
[322195280,1712869871441,-500.0,0.00027945,2]
[322195281,1712869871451,-500.0,0.00027945,2]
[322195282,1712869871461,-500.0,0.00027945,2]
[322195283,1712869871471,-1308.49,0.00027945,2]
[322195284,1712869871481,-500.0,0.00027945,2]
[322195285,1712869871490,-564.56,0.00027945,2]
[322195286,1712869871499,-703.03,0.00027945,2]
[322195287,1712869871509,-560.79,0.00027945,2]
[322195288,1712869871518,-500.0,0.00027945,2]
[322195289,1712869871528,-561.9,0.00027945,2]
[322195290,1712869871537,-500.0,0.00027945,2]
[322195291,1712869871547,-1067.51,0.00027945,2]
[322195292,1712869871557,-598.24,0.00027945,2]
[322195293,1712869871566,-500.0,0.00027945,2]
[322195294,1712869871577,-500.0,0.00027945,2]
[322195295,1712869871586,-500.0,0.00027945,2]
[322195296,1712869871596,-500.0,0.00027945,2]
[322195297,1712869871605,-691.29,0.00027945,2]
[322195298,1712869871615,-500.0,0.00027945,2]
[322195299,1712869871624,-500.0,0.00027945,2]
[322195300,1712869871634,-500.0,0.00027945,2]
[322195301,1712869871643,-500.0,0.00027945,2]
[322195302,1712869871652,-704.14,0.00027945,2]
[322195303,1712869871662,-500.0,0.00027945,2]
[322195304,1712869871672,-645.96,0.00027945,2]
[322195305,1712869871682,-1172.44,0.00027945,2]
[322195306,1712869871691,-500.0,0.00027945,2]
[322195307,1712869871701,-151.0,0.00027945,7]
[322195308,1712869871711,-500.0,0.00027945,2]
[322195309,1712869871723,-500.0,0.00027945,2]
[322195310,1712869871733,-500.0,0.00027945,2]
[322195311,1712869871744,-558.48458388,0.00027945,2]
[322195312,1712869871753,-1403.78,0.00027945,2]
[322195313,1712869871763,-500.0,0.00027945,2]
[322195314,1712869871772,-820.3,0.00027945,2]
[322195315,1712869871783,-500.0,0.00027945,2]
[322195316,1712869871792,-500.0,0.00027945,2]
[322195317,1712869871802,-500.0,0.00027945,2]
[322195318,1712869872002,-500.0,0.00027945,2]
[322195319,1712869872012,-613.07,0.00027945,2]
[322195320,1712869872021,-608.54167945,0.00027945,2]
[322195321,1712869872032,-500.0,0.00027945,2]
[322195322,1712869872042,-500.0,0.00027945,2]
[322195323,1712869872052,-500.0,0.00027945,2]
[322195324,1712869872062,-532.79855509,0.00027945,2]
[322195325,1712869872073,-500.0,0.00027945,2]
[322195326,1712869872082,-331.45,0.00027945,2]
[322195327,1712869872094,-556.22148792,0.00027945,2]
[322195328,1712869872103,-1352.31,0.00027945,2]
[322195329,1712869872112,-500.0,0.00027945,2]
[322195330,1712869872123,-500.0,0.00027945,2]
[322195331,1712869872133,-500.0,0.00027945,2]
[322195332,1712869872142,-868.58,0.00027945,2]
[322195333,1712869872153,-500.0,0.00027945,2]
[322195334,1712869872163,-500.0,0.00027945,2]
[322195335,1712869872173,-500.0,0.00027945,2]
[322195336,1712869872182,-194.16752508,0.00027945,2]
[322195337,1712869872193,-1263.1,0.00027945,2]
[322195338,1712869872201,-500.0,0.00027945,2]
[322195339,1712869872211,-1192.54,0.00027945,2]
[322195340,1712869872221,-811.44,0.00027945,2]
[322195341,1712869872230,-500.0,0.00027945,2]
[322195342,1712869872241,-500.0,0.00027945,2]
[322195343,1712869872251,-500.0,0.00027945,2]
[322195344,1712869872262,-500.0,0.00027945,2]
[322195345,1712869872271,-500.0,0.00027945,2]
[322195346,1712869872281,-500.0,0.00027945,2]
[322195347,1712869872290,-1391.45,0.00027945,2]
[322195348,1712869872299,-609.69,0.00027945,2]
[322195349,1712869872309,-676.3,0.00027945,2]
[322195350,1712869872319,-500.0,0.00027945,2]
[322195351,1712869872329,-500.0,0.00027945,2]
[322195352,1712869872341,-540.39,0.00027945,2]
[322195353,1712869872351,-1771.03,0.00027945,2]
[322195354,1712869872360,-500.0,0.00027945,2]
[322195355,1712869872371,-541.31,0.00027945,2]
[322195356,1712869872382,-1468.06,0.00027945,2]
[322195357,1712869872391,-500.0,0.00027945,2]
[322195358,1712869872402,-500.0,0.00027945,2]
[322195359,1712869872412,-862.27,0.00027945,2]
[322195360,1712869872421,-500.0,0.00027945,2]
[322195361,1712869872431,-1183.63,0.00027945,2]
[322195362,1712869872443,-500.0,0.00027945,2]
[322195363,1712869872454,-500.0,0.00027945,2]
[322195364,1712869872465,-500.0,0.00027945,2]
[322195365,1712869872475,-500.0,0.00027945,2]
[322195366,1712869872485,-500.0,0.00027945,2]
[322195367,1712869872495,-500.0,0.00027945,2]
[322195368,1712869872506,-500.0,0.00027945,2]
[322195369,1712869872517,-839.54,0.00027945,2]
[322195370,1712869872527,-500.0,0.00027945,2]
[322195371,1712869872537,-500.0,0.00027945,2]
[322195372,1712869872546,-1787.12,0.00027945,2]
[322195373,1712869872557,-500.0,0.00027945,2]
[322195374,1712869872568,-500.0,0.00027945,2]
[322195375,1712869872579,-500.0,0.00027945,2]
[322195376,1712869872589,-500.0,0.00027945,2]
[322195377,1712869872600,-500.0,0.00027945,2]
[322195378,1712869872609,-500.0,0.00027945,2]
[322195379,1712869872620,-1253.73,0.00027945,2]
[322195380,1712869872631,-500.0,0.00027945,2]
[322195381,1712869872640,-735.73,0.00027945,2]
[322195382,1712869872650,-500.0,0.00027945,2]
[322195383,1712869872661,-500.0,0.00027945,2]
[322195384,1712869872672,-500.0,0.00027945,2]
[322195385,1712869872683,-1318.44,0.00027945,2]
[322195386,1712869872692,-500.0,0.00027945,2]
[322195387,1712869872702,-500.0,0.00027945,2]
[322195388,1712869872711,-500.0,0.00027945,2]
[322195389,1712869872720,-500.0,0.00027945,2]
[322195390,1712869872729,-500.0,0.00027945,2]
[322195391,1712869872739,-500.0,0.00027945,2]
[322195392,1712869872749,-1495.11,0.00027945,2]
[322195393,1712869872759,-700.59,0.00027945,2]
[322195394,1712869872769,-500.0,0.00027945,2]
[322195395,1712869872779,-758.95,0.00027945,2]
[322195396,1712869872790,-500.0,0.00027945,2]
[322195397,1712869872800,-500.0,0.00027945,2]
[322195398,1712869872810,-521.21,0.00027945,2]
[322195399,1712869872821,-1654.67,0.00027945,2]
[322195400,1712869872832,-500.0,0.00027945,2]
[322195401,1712869872845,-500.0,0.00027945,2]
[322195402,1712869872858,-500.0,0.00027945,2]
[322195403,1712869872867,-638.47,0.00027945,2]
[322195404,1712869872877,-500.0,0.00027945,2]
[322195405,1712869872886,-1164.2,0.00027945,2]
[322195406,1712869872896,-500.0,0.00027945,2]
[322195407,1712869872905,-500.0,0.00027945,2]
[322195408,1712869872916,-500.0,0.00027945,2]
[322195409,1712869872925,-500.0,0.00027945,2]
[322195410,1712869872934,-949.05,0.00027945,2]
[322195411,1712869872944,-500.0,0.00027945,2]
[322195412,1712869872954,-635.18175874,0.00027945,2]
[322195413,1712869872964,-500.0,0.00027945,2]
[322195414,1712869872973,-500.0,0.00027945,2]
[322195415,1712869872984,-500.0,0.00027945,2]
[322195416,1712869872994,-500.0,0.00027945,2]
[322195417,1712869873003,-500.0,0.00027945,2]
[322195418,1712869873013,-500.0,0.00027945,2]
[322195419,1712869873022,-500.0,0.00027945,2]
[322195420,1712869873031,-500.0,0.00027945,2]
[322195421,1712869873040,-1096.04,0.00027945,2]
[322195422,1712869873050,-777.64,0.00027945,2]
[322195423,1712869873060,-646.84,0.00027945,2]
[322195424,1712869873070,-500.0,0.00027945,2]
[322195425,1712869873079,-611.97339588,0.00027945,2]
[322195426,1712869873089,-958.72,0.00027945,2]
[322195427,1712869873105,-500.0,0.00027945,2]
[322195428,1712869873114,-500.0,0.00027945,2]
[322195429,1712869873125,-500.0,0.00027945,2]
[322195430,1712869873136,-683.7,0.00027945,2]
[322195431,1712869873146,-500.0,0.00027945,2]
[322195432,1712869873156,-500.0,0.00027945,2]
[322195433,1712869873167,-897.54,0.00027945,2]
[322195434,1712869873176,-684.68,0.00027945,2]
[322195435,1712869873185,-500.0,0.00027945,2]
[322195436,1712869873195,-500.0,0.00027945,2]
[322195437,1712869873205,-500.0,0.00027945,2]
[322195438,1712869873214,-500.0,0.00027945,2]
[322195439,1712869873224,-543.38,0.00027945,2]
[322195440,1712869873233,-500.0,0.00027945,2]
[322195441,1712869873243,-500.0,0.00027945,2]
[322195442,1712869873253,-809.17,0.00027945,2]
[322195443,1712869873262,-500.0,0.00027945,2]
[322195444,1712869873271,-698.14,0.00027945,2]
[322195445,1712869873281,-500.0,0.00027945,2]
[322195446,1712869873290,-500.0,0.00027945,2]
[322195447,1712869873299,-500.0,0.00027945,2]
[322195448,1712869873309,-1067.08,0.00027945,2]
[322195449,1712869873319,-500.0,0.00027945,2]
[322195450,1712869873329,-1021.38,0.00027945,2]
[322195451,1712869873338,-500.0,0.00027945,2]
[322195452,1712869873353,-784.4,0.00027945,2]
[322195453,1712869873364,-500.0,0.00027945,2]
[322195454,1712869873374,-500.0,0.00027945,2]
[322195455,1712869873383,-1207.29,0.00027945,2]
[322195456,1712869873392,-853.95,0.00027945,2]
[322195457,1712869873402,-1154.75,0.00027945,2]
[322195458,1712869873411,-337.17279691,0.00027945,2]
[322195459,1712869873421,-500.0,0.00027945,2]
[322195460,1712869873431,-1500.39,0.00027945,2]
[322195461,1712869873440,-500.0,0.00027945,2]
[322195462,1712869873451,-500.0,0.00027945,2]
[322195463,1712869873460,-500.0,0.00027945,2]
[322195464,1712869873469,-500.0,0.00027945,2]
[322195465,1712869873478,-1102.48,0.00027945,2]
[322195466,1712869873487,-500.0,0.00027945,2]
[322195467,1712869873496,-500.0,0.00027945,2]
[322195468,1712869873506,-1684.95,0.00027945,2]
[322195469,1712869873515,-864.47,0.00027945,2]
[322195470,1712869873523,-1050.08,0.00027945,2]
[322195471,1712869873533,-500.0,0.00027945,2]
[322195472,1712869873543,-246.16,0.00027945,2]
[322195473,1712869873552,-500.0,0.00027945,2]
[322195474,1712869873561,-1060.45,0.00027945,2]
[322195475,1712869873571,-268.68797298,0.00027945,2]
[322195476,1712869873580,-500.0,0.00027945,2]
[322195477,1712869873589,-727.49,0.00027945,2]
[322195478,1712869873602,-534.42,0.00027945,2]
[322195479,1712869873612,-500.0,0.00027945,2]
[322195480,1712869873621,-500.0,0.00027945,2]
[322195481,1712869873630,-500.0,0.00027945,2]
[322195482,1712869873639,-500.0,0.00027945,2]
[322195483,1712869873648,-598.73,0.00027945,2]
[322195484,1712869873657,-500.0,0.00027945,2]
[322195485,1712869873666,-500.0,0.00027945,2]
[322195486,1712869873676,-1013.17,0.00027945,2]
[322195487,1712869873685,-500.0,0.00027945,2]
[322195488,1712869873694,-564.88199899,0.00027945,2]
[322195489,1712869873703,-552.15,0.00027945,2]
[322195490,1712869873712,-722.75,0.00027945,2]
[322195491,1712869873722,-500.0,0.00027945,2]
[322195492,1712869873731,-500.0,0.00027945,2]
[322195493,1712869873741,-500.0,0.00027945,2]
[322195494,1712869873759,-1454.96,0.00027945,2]
[322195495,1712869873771,-585.74,0.00027945,2]
[322195496,1712869873781,-600.91,0.00027945,2]
[322195497,1712869873791,-627.17,0.00027945,2]
[322195498,1712869873800,-500.0,0.00027945,2]
[322195499,1712869873810,-500.0,0.00027945,2]
[322195500,1712869873819,-1870.66,0.00027945,2]
[322195501,1712869873829,-921.94,0.00027945,2]
[322195502,1712869873839,-500.0,0.00027945,2]
[322195503,1712869873851,-500.0,0.00027945,2]
[322195504,1712869873860,-500.0,0.00027945,2]
[322195505,1712869873870,-1288.35,0.00027945,2]
[322195506,1712869873879,-500.0,0.00027945,2]
[322195507,1712869873889,-500.0,0.00027945,2]
[322195508,1712869873898,-670.72,0.00027945,2]
[322195509,1712869873907,-582.76993004,0.00027945,2]
[322195510,1712869873917,-500.0,0.00027945,2]
[322195511,1712869873927,-1052.23,0.00027945,2]
[322195512,1712869873937,-500.0,0.00027945,2]
[322195513,1712869873947,-1720.31,0.00027945,2]
[322195514,1712869873956,-500.0,0.00027945,2]
[322195515,1712869873966,-500.0,0.00027945,2]
[322195516,1712869873975,-500.0,0.00027945,2]
[322195517,1712869873985,-500.0,0.00027945,2]
[322195518,1712869873994,-2622.22,0.00027945,2]
[322195519,1712869874004,-500.0,0.00027945,2]
[322195520,1712869874014,-500.0,0.00027945,2]
[322195521,1712869874023,-1850.14,0.00027945,2]
[322195522,1712869874032,-500.0,0.00027945,2]
[322195523,1712869874042,-500.0,0.00027945,2]
[322195524,1712869874052,-500.0,0.00027945,2]
[322195525,1712869874061,-500.0,0.00027945,2]
[322195526,1712869874071,-500.0,0.00027945,2]
[322195527,1712869874080,-500.0,0.00027945,2]
[322195528,1712869874090,-300.0,0.00027945,2]
[322195529,1712869874100,-500.0,0.00027945,2]
[322195530,1712869874109,-500.0,0.00027945,2]
[322195531,1712869874118,-500.0,0.00027945,2]
[322195532,1712869874126,-869.29,0.00027945,2]
[322195533,1712869874136,-500.0,0.00027945,2]
[322195534,1712869874145,-500.0,0.00027945,2]
[322195535,1712869874154,-933.06,0.00027945,2]
[322195536,1712869874163,-722.11,0.00027945,2]
[322195537,1712869874173,-500.0,0.00027945,2]
[322195538,1712869874182,-500.0,0.00027945,2]
[322195539,1712869874191,-1172.68,0.00027945,2]
[322195540,1712869874201,-243.88022012,0.00027945,2]
[322195541,1712869874210,-500.0,0.00027945,2]
[322195542,1712869874219,-500.0,0.00027945,2]
[322195543,1712869874229,-500.0,0.00027945,2]
[322195544,1712869874238,-500.0,0.00027945,2]
[322195545,1712869874248,-1203.46,0.00027945,2]
[322195546,1712869874257,-993.8,0.00027945,2]
[322195547,1712869874267,-500.0,0.00027945,2]
[322195548,1712869874276,-500.0,0.00027945,2]
[322195549,1712869874285,-500.0,0.00027945,2]
[322195550,1712869874294,-500.0,0.00027945,2]
[322195551,1712869874303,-500.0,0.00027945,2]
[322195552,1712869874312,-402.86904629,0.00027945,2]
[322195553,1712869874322,-500.0,0.00027945,2]
[322195554,1712869874331,-150.0,0.00027945,2]
[322195555,1712869874342,-500.0,0.00027945,2]
[322195556,1712869874354,-1318.86,0.00027945,2]
[322195557,1712869874364,-879.12,0.00027945,2]
[322195558,1712869874373,-1664.67,0.00027945,2]
[322195559,1712869874383,-500.0,0.00027945,2]
[322195560,1712869874392,-500.0,0.00027945,2]
[322195561,1712869874402,-500.0,0.00027945,2]
[322195562,1712869874411,-500.0,0.00027945,2]
[322195563,1712869874420,-500.0,0.00027945,2]
[322195564,1712869874430,-500.0,0.00027945,2]
[322195565,1712869874439,-553.15,0.00027945,2]
[322195566,1712869874450,-916.81,0.00027945,2]
[322195567,1712869874459,-500.0,0.00027945,2]
[322195568,1712869874468,-923.4,0.00027945,2]
[322195569,1712869874478,-1597.09,0.00027945,2]
[322195570,1712869874487,-500.0,0.00027945,2]
[322195571,1712869874496,-500.0,0.00027945,2]
[322195572,1712869874506,-500.0,0.00027945,2]
[322195573,1712869874515,-500.0,0.00027945,2]
[322195574,1712869874525,-500.0,0.00027945,2]
[322195575,1712869874535,-500.0,0.00027945,2]
[322195576,1712869874545,-500.0,0.00027945,2]
[322195577,1712869874555,-500.0,0.00027945,2]
[322195578,1712869874565,-500.0,0.00027945,2]
[322195579,1712869874574,-500.0,0.00027945,2]
[322195580,1712869874584,-1225.4,0.00027945,2]
[322195581,1712869874595,-500.0,0.00027945,2]
[322195582,1712869874604,-500.0,0.00027945,2]
[322195583,1712869874613,-500.0,0.00027945,2]
[322195584,1712869874622,-538.92002619,0.00027945,2]
[322195585,1712869874632,-1736.6,0.00027945,2]
[322195586,1712869874642,-1687.78,0.00027945,2]
[322195587,1712869874652,-533.65,0.00027945,2]
[322195588,1712869874661,-500.0,0.00027945,2]
[322195589,1712869874670,-500.0,0.00027945,2]
[322195590,1712869874680,-500.0,0.00027945,2]
[322195591,1712869874690,-500.0,0.00027945,2]
[322195592,1712869874699,-500.0,0.00027945,2]
[322195593,1712869874710,-500.0,0.00027945,2]
[322195594,1712869874720,-892.21,0.00027945,2]
[322195595,1712869874730,-500.0,0.00027945,2]
[322195596,1712869874739,-698.09,0.00027945,2]
[322195597,1712869874749,-500.0,0.00027945,2]
[322195598,1712869874759,-500.0,0.00027945,2]
[322195599,1712869875004,-500.0,0.00027945,2]
[322195600,1712869875015,-500.0,0.00027945,2]
[322195601,1712869875026,-500.0,0.00027945,2]
[322195602,1712869875036,-500.0,0.00027945,2]
[322195603,1712869875046,-500.0,0.00027945,2]
[322195604,1712869875056,-500.0,0.00027945,2]
[322195605,1712869875066,-1618.97,0.00027945,2]
[322195606,1712869875075,-500.0,0.00027945,2]
[322195607,1712869875084,-500.0,0.00027945,2]
[322195608,1712869875095,-500.0,0.00027945,2]
[322195609,1712869875104,-500.0,0.00027945,2]
[322195610,1712869875113,-500.0,0.00027945,2]
[322195611,1712869875122,-998.14,0.00027945,2]
[322195612,1712869875130,-500.0,0.00027945,2]
[322195613,1712869875140,-500.0,0.00027945,2]
[322195614,1712869875150,-500.0,0.00027945,2]
[322195615,1712869875159,-500.0,0.00027945,2]
[322195616,1712869875169,-500.0,0.00027945,2]
[322195617,1712869875179,-500.0,0.00027945,2]
[322195618,1712869875190,-500.0,0.00027945,2]
[322195619,1712869875199,-377.90597377,0.00027945,2]
[322195620,1712869875210,-1890.51,0.00027945,2]
[322195621,1712869875220,-827.22,0.00027945,2]
[322195622,1712869875230,-500.0,0.00027945,2]
[322195623,1712869875239,-500.0,0.00027945,2]
[322195624,1712869875250,-500.0,0.00027945,2]
[322195625,1712869875259,-500.0,0.00027945,2]
[322195626,1712869875269,-531.49247348,0.00027945,2]
[322195627,1712869875279,-500.0,0.00027945,2]
[322195628,1712869875289,-500.0,0.00027945,2]
[322195629,1712869875298,-500.0,0.00027945,2]
[322195630,1712869875307,-500.0,0.00027945,2]
[322195631,1712869875318,-1646.03,0.00027945,2]
[322195632,1712869875327,-500.0,0.00027945,2]
[322195633,1712869875337,-911.48,0.00027945,2]
[322195634,1712869875349,-767.01,0.00027945,2]
[322195635,1712869875359,-500.0,0.00027945,2]
[322195636,1712869875370,-1116.76,0.00027945,2]
[322195637,1712869875380,-500.0,0.00027945,2]
[322195638,1712869875390,-500.0,0.00027945,2]
[322195639,1712869875401,-570.82,0.00027945,2]
[322195640,1712869875411,-1022.77,0.00027945,2]
[322195641,1712869875422,-500.0,0.00027945,2]
[322195642,1712869875432,-500.0,0.00027945,2]
[322195643,1712869875442,-500.0,0.00027945,2]
[322195644,1712869875453,-831.5,0.00027945,2]
[322195645,1712869875462,-500.0,0.00027945,2]
[322195646,1712869875474,-680.97,0.00027945,2]
[322195647,1712869875483,-500.0,0.00027945,2]
[322195648,1712869875492,-500.0,0.00027945,2]
[322195649,1712869875502,-752.98,0.00027945,2]
[322195650,1712869875511,-500.0,0.00027945,2]
[322195651,1712869875520,-500.0,0.00027945,2]
[322195652,1712869875531,-500.0,0.00027945,2]
[322195653,1712869875541,-500.0,0.00027945,2]
[322195654,1712869875550,-500.0,0.00027945,2]
[322195655,1712869875560,-500.0,0.00027945,2]